bitfinex-derivatives/quotes_SOLF0:USTF0_20241017
["timestamp","ask_amount","ask_price","bid_price","bid_amount"]
[1729194277340,4.92,149.45,149.41,13.66897262]
[1729194278036,8.2661,149.45,149.42,3.3466]
[1729194280645,3.3461,149.45,149.41,13.66897262]
[1729194280847,3.3461,149.45,149.42,3.3467]
[1729194282641,3.3461,149.45,149.42,13.6367]
[1729194286051,3.3461,149.45,149.42,3.3467]
[1729194286243,3.3461,149.45,149.42,13.6367]
[1729194286751,3.3461,149.45,149.42,3.3467]
[1729194288442,3.3464,149.44,149.42,3.3466]
[1729194289655,4.92,149.46,149.41,13.66897262]
[1729194289856,3.3462,149.45,149.42,3.3466]
[1729194290054,4.92,149.46,149.41,3.37897262]
[1729194290352,4.92,149.46,149.41,10.29]
[1729194290550,4.92,149.46,149.41,13.57680789]
[1729194290855,3.3462,149.45,149.42,3.3467]
[1729194291158,4.92,149.46,149.42,3.3467]
[1729194291753,3.3464,149.44,149.42,3.3467]
[1729194296953,4.92,149.46,149.42,10.29]
[1729194297163,123.42667053,149.47,149.42,10.29]
[1729194297465,128.34667053,149.47,149.42,10.29]
[1729194297663,3.3456,149.47,149.44,3.3461]
[1729194297961,4.92,149.47,149.44,3.3461]
[1729194299561,3.3458,149.46,149.44,3.3461]
[1729194299754,4.92,149.47,149.41,3.28680789]
[1729194299960,3.346,149.46,149.43,3.3465]
[1729194301363,3.3464,149.44,149.41,3.3468]
[1729194301558,3.3464,149.44,149.41,6.63728965]
[1729194302465,3.3464,149.44,149.42,3.3467]
[1729194303458,3.3466,149.43,149.4,3.347]
[1729194304059,3.3464,149.44,149.42,3.3467]
[1729194304467,10.29,149.45,149.42,3.3467]
[1729194305561,3.3463,149.44,149.42,3.3467]
[1729194306067,3.3459,149.46,149.43,3.3463]
[1729194306369,4.92,149.47,149.43,10.29]
[1729194306967,8.2657,149.47,149.44,3.3461]
[1729194308070,4.92,149.47,149.44,3.3461]
[1729194308272,3.3458,149.46,149.44,3.3461]
[1729194308466,4.92,149.47,149.44,3.3461]
[1729194308859,8.2658,149.47,149.44,3.3461]
[1729194309968,8.2655,149.48,149.45,13.6359]
[1729194310571,1.0,149.49,149.45,10.29]
[1729194310869,9.2653,149.49,149.47,3.3456]
[1729194311272,1.0,149.49,149.47,3.3456]
[1729194311479,1.0,149.49,149.48,10.29]
[1729194312372,1.0,149.49,149.48,13.6354]
[1729194313271,1.0,149.49,149.48,3.3454]
[1729194314969,1.0,149.49,149.42,9.5166]
[1729194315279,1.0,149.49,149.47,13.6355]
[1729194315668,4.3452,149.49,149.47,10.29]
[1729194316871,4.3452,149.49,149.46,13.6357]
[1729194317777,4.3452,149.49,149.47,3.3456]
[1729194318577,1.0,149.49,149.47,10.29]
[1729194319672,1.0,149.49,149.48,10.29]
[1729194320070,1.0,149.49,149.48,13.6354]
[1729194323877,1.0,149.49,149.47,3.42077833]
[1729194324077,1.0,149.49,149.47,3.3455]
[1729194324284,1.0,149.49,149.47,6.63600699]
[1729194325894,1.0,149.49,149.47,3.29050699]
[1729194326097,1.0,149.49,149.48,3.3454]
[1729194329600,1.0,149.49,149.48,13.6354]
[1729194338595,1.0,149.49,149.46,10.29]
[1729194339406,1.0,149.49,149.42,7.7435]
[1729194339699,11.29,149.49,149.44,10.29]
[1729194340109,16.21,149.49,149.45,3.3459]
[1729194340601,10.29,149.48,149.43,13.6364]
[1729194340798,5.92,149.49,149.41,4.92]
[1729194340799,10.29,149.45,149.41,4.92]
[1729194341000,10.29,149.45,149.41,10.29]
[1729194341207,3.3463,149.44,149.41,13.6368]
[1729194344009,13.6366,149.43,149.4,3.3471]
[1729194346408,13.6366,149.43,149.41,3.3469]
[1729194350114,10.29,149.43,149.39,13.70590494]
[1729194350608,10.29,149.43,149.41,3.3468]
[1729194350808,15.21,149.45,149.4,10.29]
[1729194351016,2.7464,149.47,149.43,10.29]
[1729194351212,2.7464,149.47,149.44,3.3461]
[1729194351415,3.346,149.46,149.44,3.3461]
[1729194351807,13.636,149.46,149.43,3.3464]
[1729194352115,3.3461,149.45,149.43,3.3464]
[1729194356319,3.3461,149.45,149.42,3.42695207]
[1729194356518,3.3461,149.45,149.42,6.77365207]
[1729194357518,3.3461,149.45,149.43,3.3465]
[1729194360128,13.6358,149.46,149.44,3.3462]
[1729194361019,13.6358,149.46,149.43,3.3463]
[1729194361320,3.3461,149.45,149.43,3.3463]
[1729194363433,13.6359,149.46,149.44,3.3463]
[1729194364428,3.3456,149.47,149.45,3.3461]
[1729194364727,2.7931,149.52,149.46,10.29]
[1729194364927,16.4278,149.52,149.48,3.3454]
[1729194365130,10.29,149.51,149.48,3.3454]
[1729194366532,13.6348,149.51,149.48,3.3454]
[1729194367035,2.7931,149.52,149.48,3.3454]
[1729194367234,13.0831,149.52,149.48,3.3454]
[1729194367734,10.29,149.52,149.48,13.6354]
[1729194368431,4.4147,149.58,149.48,13.6354]
[1729194368630,4.9,149.54,149.48,13.6354]
[1729194369534,3.3443,149.53,149.48,13.6354]
[1729194370338,4.9,149.54,149.48,13.6354]
[1729194370530,8.2442,149.54,149.48,13.6354]
[1729194370732,4.9,149.54,149.48,13.6354]
[1729194371241,10.29,149.55,149.48,13.6354]
[1729194371437,15.19,149.55,149.48,13.6354]
[1729194371636,4.9,149.55,149.48,13.6354]
[1729194371837,15.19,149.55,149.48,13.6354]
[1729194372826,3.3441,149.54,149.48,13.6354]
[1729194373631,15.19,149.55,149.48,13.6354]
[1729194373827,3.3443,149.53,149.48,13.6354]
[1729194374938,15.19,149.55,149.48,13.6354]
[1729194376436,3.3443,149.53,149.48,13.6354]
[1729194377031,3.3446,149.52,149.48,3.3454]
[1729194377236,10.29,149.52,149.48,3.3454]
[1729194378137,3.3449,149.5,149.48,3.3454]
[1729194380441,4.3452,149.49,149.47,13.6354]
[1729194380648,1.0,149.49,149.47,10.29]
[1729194381035,4.3453,149.49,149.46,10.29]
[1729194381244,11.29,149.49,149.43,4.86460421]
[1729194381439,10.29,149.47,149.43,13.70600421]
[1729194381639,3.3459,149.46,149.44,3.3462]
[1729194381943,10.29,149.47,149.44,6.64685123]
[1729194382143,13.6358,149.47,149.45,3.346]
[1729194383147,3.3458,149.46,149.44,3.3461]
[1729194383346,10.29,149.47,149.38,1.3573]
[1729194383347,10.29,149.45,149.41,3.33478205]
[1729194383649,10.29,149.45,149.4,15.19]
[1729194383850,10.29,149.45,149.41,3.3468]
[1729194384049,10.29,149.44,149.41,3.3468]
[1729194384242,13.6364,149.44,149.42,3.3467]
[1729194386746,13.6364,149.44,149.41,3.3468]
[1729194387554,13.6364,149.44,149.42,3.3467]
[1729194387853,13.6364,149.44,149.4,8.27483815]
[1729194388156,13.6364,149.44,149.41,3.3468]
[1729194392755,1.0,149.49,149.43,10.29]
[1729194393063,15.19,149.48,149.43,10.29]
[1729194393259,13.6358,149.47,149.44,3.3462]
[1729194396854,8.2455,149.48,149.45,3.3458]
[1729194397060,18.5355,149.48,149.45,3.3458]
[1729194397455,10.29,149.47,149.44,3.3462]
[1729194398164,3.3459,149.46,149.44,3.3462]
[1729194401773,10.29,149.45,149.4,8.27483815]
[1729194401979,3.3464,149.44,149.42,3.3467]
[1729194402467,13.6361,149.45,149.43,3.3465]
[1729194402855,13.6361,149.45,149.43,6.66432606]
[1729194404367,13.6361,149.45,149.42,3.3466]
[1729194404569,3.3461,149.45,149.4,10.29]
[1729194404768,3.3461,149.45,149.4,13.71962199]
[1729194405377,3.3461,149.45,149.43,3.3465]
[1729194406571,15.19,149.48,149.43,10.29]
[1729194407372,18.5355,149.48,149.45,3.3459]
[1729194408175,13.6356,149.47,149.45,3.3459]
[1729194409176,3.3459,149.46,149.43,3.3464]
[1729194409375,3.3459,149.46,149.42,15.19]
[1729194410062,3.3459,149.46,149.44,3.3461]
[1729194413973,3.3462,149.45,149.43,3.3464]
[1729194415077,3.3459,149.46,149.43,3.3464]
[1729194416178,3.3457,149.47,149.45,3.346]
[1729194416867,8.2454,149.48,149.45,3.346]
[1729194417165,3.3454,149.48,149.44,10.29]
[1729194417367,4.3453,149.49,149.47,3.3455]
[1729194417776,4.3453,149.49,149.46,13.6187561]
[1729194417777,1.0,149.49,149.46,13.6187561]
[1729194418079,1.0,149.49,149.48,13.6354]
[1729194434898,1.0,149.49,149.48,3.3454]
[1729194435094,1.0,149.49,149.48,13.6354]
[1729194436192,3.3439,149.55,149.48,10.29]
[1729194436391,3.3439,149.55,149.52,10.29]
[1729194437193,3.3439,149.55,149.52,13.6343]
[1729194437495,22.8286,149.56,149.52,10.29]
[1729194437798,22.8286,149.56,149.53,3.3441]
[1729194438388,3.3438,149.55,149.53,3.3441]
[1729194446805,6.2789,149.56,149.54,3.344]
[1729194447005,3.3437,149.56,149.54,3.344]
[1729194447205,4.9,149.58,149.53,10.29]
[1729194447407,4.9,149.58,149.54,3.3439]
[1729194447408,3.3435,149.57,149.54,3.3439]
[1729194449002,3.3435,149.57,149.55,3.3438]
[1729194450706,15.19,149.58,149.52,3.27189906]
[1729194450907,3.3437,149.56,149.52,10.29]
[1729194451109,3.3437,149.56,149.52,13.64529603]
[1729194452295,3.3437,149.56,149.54,3.344]
[1729194454611,13.6337,149.56,149.52,3.35529603]
[1729194454808,3.3438,149.55,149.53,3.3442]
[1729194455209,10.29,149.56,149.53,3.3442]
[1729194456408,13.6337,149.56,149.53,3.3442]
[1729194456903,3.3437,149.56,149.54,3.344]
[1729194459713,13.6337,149.56,149.54,3.344]
[1729194461806,10.29,149.56,149.47,4.9]
[1729194462012,3.3439,149.55,149.51,10.29]
[1729194462215,10.29,149.54,149.49,10.29]
[1729194463212,13.6342,149.54,149.52,3.3444]
[1729194464223,3.3442,149.54,149.52,3.3444]
[1729194468405,3.3438,149.56,149.53,3.3441]
[1729194468915,124.33942602,149.59,149.53,10.29]
[1729194469115,3.3435,149.57,149.55,3.3438]
[1729194469318,15.19,149.58,149.53,10.29]
[1729194469517,15.19,149.58,149.52,10.29]
[1729194470013,15.19,149.58,149.54,3.3439]
[1729194470014,3.3436,149.56,149.54,3.3439]
[1729194471317,8.2433,149.58,149.53,10.29]
[1729194471522,3.3433,149.58,149.53,10.29]
[1729194472018,13.6333,149.58,149.56,3.3436]
[1729194475416,10.29,149.58,149.53,10.29]
[1729194475723,13.6335,149.57,149.54,3.3439]
[1729194476616,3.3437,149.56,149.54,3.3439]
[1729194477727,3.3437,149.56,149.53,3.3441]
[1729194478019,3.3437,149.56,149.52,10.29]
[1729194479515,3.3437,149.56,149.54,3.344]
[1729194481719,134.62942602,149.59,149.55,10.29]
[1729194481923,129.23942602,149.59,149.55,10.29]
[1729194482126,124.33942602,149.59,149.55,10.29]
[1729194482718,10.29,149.58,149.53,10.29]
[1729194483129,10.29,149.58,149.55,3.3436]
[1729194483130,3.3435,149.57,149.55,3.3436]
[1729194483421,124.33942602,149.59,149.53,10.29]
[1729194483634,10.29,149.58,149.53,10.29]
[1729194483822,3.3435,149.57,149.55,3.3437]
[1729194485131,3.3435,149.57,149.55,3.3438]
[1729194490527,10.29,149.58,149.53,10.29]
[1729194490730,3.3433,149.58,149.55,3.3436]
[1729194491334,3.3433,149.58,149.53,10.29]
[1729194491635,3.3433,149.58,149.56,3.3436]
[1729194492938,3.3434,149.57,149.53,10.29]
[1729194494243,3.3436,149.56,149.53,10.29]
[1729194495036,3.3436,149.56,149.54,3.3439]
[1729194495940,3.3433,149.58,149.53,10.29]
[1729194496636,4.343,149.59,149.53,10.29]
[1729194496836,4.343,149.59,149.54,10.29]
[1729194497231,4.343,149.59,149.56,3.3434]
[1729194497532,3.3432,149.58,149.56,3.3434]
[1729194497935,1.0,149.59,149.56,13.6334]
[1729194499537,4.343,149.59,149.56,13.6334]
[1729194499739,4.343,149.59,149.56,10.29]
[1729194500041,4.343,149.59,149.57,3.3433]
[1729194505939,4.343,149.59,149.58,13.6331]
[1729194505940,1.0,149.59,149.58,13.6331]
[1729194507347,1.0,149.59,149.55,4.9]
[1729194507543,1.0,149.59,149.56,10.29]
[1729194507940,1.0,149.59,149.57,3.3433]
[1729194511958,1.0,149.59,149.58,3.3431]
[1729194518451,1.0,149.59,149.58,13.6331]
[1729194520161,1.0,149.59,149.58,3.3431]
[1729194524356,4.88,149.75,149.58,59.0]
[1729194524553,10.29,149.68,149.61,10.29]
[1729194524748,3.3413,149.67,149.63,3.3419]
[1729194524951,10.29,149.64,149.61,3.3123767]
[1729194525252,10.29,149.63,149.59,4.88]
[1729194525457,10.29,149.63,149.59,3.28395433]
[1729194525755,10.29,149.63,149.58,15.17]
[1729194526464,10.29,149.63,149.61,3.3424]
[1729194533167,10.29,149.63,149.53,4.88]
[1729194533168,4.88,149.63,149.53,4.88]
[1729194533367,10.29,149.57,149.53,4.88]
[1729194533551,10.29,149.57,149.55,3.3437]
[1729194533957,10.29,149.57,149.53,8.17688868]
[1729194534164,4.88,149.63,149.55,10.29]
[1729194534364,10.29,149.61,149.56,10.29]
[1729194534557,13.6325,149.61,149.58,3.343]
[1729194535455,4.88,149.63,149.57,3.3432]
[1729194535456,13.6328,149.6,149.57,3.3432]
[1729194535658,10.29,149.59,149.54,10.29]
[1729194535963,10.29,149.59,149.54,15.17]
[1729194536762,13.633,149.59,149.56,3.3434]
[1729194538666,13.633,149.59,149.57,3.3433]
[1729194540459,4.88,149.63,149.57,10.29]
[1729194540664,10.29,149.62,149.57,10.29]
[1729194541065,13.6324,149.62,149.59,3.3428]
[1729194541367,10.29,149.62,149.59,3.3428]
[1729194542373,3.3425,149.61,149.59,3.3428]
[1729194543575,10.29,149.62,149.6,3.3425]
[1729194544069,10.29,149.62,149.58,10.29]
[1729194544273,13.632,149.64,149.61,3.3425]
[1729194544466,13.632,149.64,149.61,6.75073112]
[1729194544657,13.632,149.64,149.61,3.3425]
[1729194544859,3.342,149.64,149.62,3.3421]
[1729194547777,3.3417,149.65,149.63,3.342]
[1729194547961,3.3417,149.65,149.63,6.74520758]
[1729194548167,3.3417,149.65,149.63,3.342]
[1729194548367,13.168,149.66,149.63,3.41758403]
[1729194548575,4.8142,149.66,149.64,3.3418]
[1729194549367,4.8142,149.66,149.63,6.67824035]
[1729194550372,10.29,149.67,149.63,3.33634035]
[1729194550577,3.3412,149.67,149.65,3.3416]
[1729194550872,3.3412,149.67,149.64,10.29]
[1729194551279,13.6314,149.67,149.64,3.3417]
[1729194551573,10.29,149.65,149.59,10.29]
[1729194551773,10.29,149.63,149.62,3.3423]
[1729194552881,13.632,149.63,149.61,6.68285111]
[1729194553871,10.29,149.63,149.61,6.68285111]
[1729194554271,13.6319,149.64,149.61,6.68285111]
[1729194555879,16.569,149.66,149.61,13.63035111]
[1729194556079,16.569,149.66,149.62,10.29]
[1729194556080,3.3417,149.65,149.62,10.29]
[1729194556872,3.3414,149.66,149.63,10.29]
[1729194557078,3.3414,149.66,149.62,10.29]
[1729194557278,10.29,149.66,149.61,3.34035111]
[1729194557485,3.3416,149.65,149.63,3.3419]
[1729194557778,3.3416,149.65,149.63,6.68470366]
[1729194558077,3.3416,149.65,149.63,3.3419]
[1729194558579,3.3416,149.65,149.63,6.7643758]
[1729194559782,3.3419,149.64,149.62,3.3422]
[1729194559971,3.3419,149.64,149.63,3.31817687]
[1729194562064,13.6319,149.64,149.59,15.17]
[1729194562663,13.6319,149.64,149.62,3.3422]
[1729194562870,13.6319,149.64,149.62,6.73525815]
[1729194563073,13.6319,149.64,149.62,3.3422]
[1729194563664,13.6319,149.64,149.62,6.69681463]
[1729194563867,13.6319,149.64,149.62,3.35461463]
[1729194564068,13.6319,149.64,149.61,3.3423]
[1729194564779,3.3421,149.63,149.62,3.40420453]
[1729194565977,10.29,149.64,149.62,3.40420453]
[1729194566179,3.3419,149.64,149.62,3.3423]
[1729194566377,3.3419,149.64,149.62,6.62983289]
[1729194573182,10.29,149.65,149.62,3.28753289]
[1729194573378,4.88,149.68,149.63,10.29]
[1729194573574,4.88,149.68,149.63,13.57184356]
[1729194573779,15.17,149.68,149.63,13.57184356]
[1729194574079,10.29,149.68,149.63,13.57184356]
[1729194574281,10.29,149.68,149.63,18.45184356]
[1729194575182,13.631,149.68,149.65,3.3415]
[1729194575687,10.29,149.68,149.63,18.45184356]
[1729194575884,14.6307,149.69,149.64,10.29]
[1729194576790,11.29,149.69,149.64,10.29]
[1729194577086,3.341,149.68,149.64,10.29]
[1729194577580,14.6307,149.69,149.65,3.3415]
[1729194577786,14.6307,149.69,149.64,10.29]
[1729194578195,14.6307,149.69,149.66,3.3412]
[1729194578487,14.6307,149.69,149.64,10.29]
[1729194579189,3.3398,149.73,149.63,4.88]
[1729194579393,10.29,149.75,149.69,10.29]
[1729194579584,10.29,149.73,149.69,13.6306]
[1729194579786,3.34,149.72,149.69,3.3406]
[1729194579980,10.29,149.71,149.67,8.221]
[1729194580285,3.3396,149.74,149.7,10.29]
[1729194580690,3.3396,149.74,149.71,3.34]
[1729194581991,3.3396,149.74,149.7,10.29]
[1729194582194,3.3396,149.74,149.71,3.3402]
[1729194582581,3.3396,149.74,149.7,10.29]
[1729194582787,3.3396,149.74,149.71,3.34]
[1729194585090,3.3399,149.73,149.7,3.3404]
[1729194586297,3.3399,149.73,149.69,10.29]
[1729194586497,3.3399,149.73,149.7,3.3403]
[1729194588597,3.3399,149.73,149.71,10.29]
[1729194589096,10.29,149.72,149.63,3.33867976]
[1729194589300,10.29,149.71,149.62,4.88]
[1729194589601,10.29,149.71,149.65,10.29]
[1729194589800,3.341,149.68,149.65,13.6314]
[1729194590199,3.341,149.68,149.66,3.3413]
[1729194590703,3.3413,149.67,149.65,10.29]
[1729194590897,3.3413,149.67,149.65,13.6316]
[1729194592402,3.3414,149.66,149.63,3.3419]
[1729194592704,3.3414,149.66,149.64,10.29]
[1729194594410,3.3414,149.66,149.64,13.6318]
[1729194600309,10.29,149.65,149.45,20.09]
[1729194600516,2.7622,149.65,149.58,121.06155125]
[1729194600808,10.29,149.62,149.58,117.79707137]
[1729194600998,10.29,149.62,149.52,2.8796]
[1729194600999,10.29,149.6,149.55,4.88]
[1729194601203,10.29,149.6,149.56,10.29]
[1729194601419,3.3428,149.6,149.58,10.29]
[1729194601619,6.3434,149.64,149.59,10.29]
[1729194601914,3.3421,149.63,149.59,13.6328]
[1729194602213,6.3434,149.64,149.59,3.29723497]
[1729194602417,6.3434,149.64,149.59,10.29]
[1729194602610,3.3427,149.6,149.59,13.71056794]
[1729194602804,3.3427,149.6,149.59,10.29]
[1729194603536,3.3427,149.6,149.59,3.30624453]
[1729194603910,3.3431,149.59,149.57,13.69288706]
[1729194604112,10.29,149.61,149.57,10.29]
[1729194604317,6.3434,149.64,149.57,10.29]
[1729194604318,10.29,149.62,149.57,10.29]
[1729194604615,10.29,149.62,149.57,13.70258475]
[1729194604818,10.29,149.62,149.59,10.29]
[1729194605324,6.3434,149.64,149.59,10.29]
[1729194605511,6.3434,149.64,149.6,10.29]
[1729194605704,3.3424,149.62,149.6,10.29]
[1729194607222,3.3421,149.63,149.6,13.6326]
[1729194607613,4.88,149.64,149.6,13.6326]
[1729194608420,3.3423,149.62,149.6,13.6326]
[1729194608718,4.88,149.64,149.6,10.29]
[1729194608918,10.29,149.63,149.59,3.26177716]
[1729194609223,3.3427,149.61,149.58,13.633]
[1729194609426,10.29,149.63,149.58,3.343]
[1729194609616,10.29,149.63,149.58,13.633]
[1729194609817,10.29,149.63,149.58,17.04201277]
[1729194610313,10.29,149.63,149.58,13.633]
[1729194610513,10.29,149.63,149.58,13.66055897]
[1729194610719,3.3428,149.6,149.58,3.37055897]
[1729194611120,10.29,149.61,149.52,2.8796]
[1729194611420,3.3433,149.58,149.56,3.3436]
[1729194611626,3.3433,149.58,149.56,6.74659391]
[1729194613230,3.343,149.59,149.56,6.74659391]
[1729194614619,10.29,149.61,149.57,10.29]
[1729194614930,3.3431,149.59,149.57,10.29]
[1729194615520,3.3435,149.57,149.52,1.4089]
[1729194615832,10.29,149.57,149.53,3.3441]
[1729194616023,3.3442,149.54,149.5,10.29]
[1729194616425,3.3442,149.54,149.51,3.3445]
[1729194616622,3.3442,149.54,149.5,10.29]
[1729194616820,10.29,149.55,149.51,3.34046779]
[1729194617022,13.6339,149.55,149.52,3.3444]
[1729194618226,3.3439,149.55,149.52,13.6344]
[1729194618627,3.3439,149.55,149.52,3.3444]
[1729194619137,3.3439,149.55,149.51,13.63046779]
[1729194619435,8.2236,149.56,149.52,10.29]
[1729194619625,4.88,149.56,149.52,10.29]
[1729194619826,4.88,149.56,149.53,3.3441]
[1729194620026,8.2238,149.56,149.53,3.3441]
[1729194620329,10.29,149.54,149.49,8.16416007]
[1729194620726,3.3445,149.52,149.5,3.3448]
[1729194620926,10.29,149.54,149.5,3.3448]
[1729194621328,3.3444,149.53,149.5,3.3448]
[1729194622725,3.3445,149.52,149.5,3.3448]
[1729194622928,10.29,149.53,149.49,6.62926007]
[1729194623724,10.29,149.53,149.49,3.28416007]
[1729194624033,3.3449,149.5,149.49,3.28416007]
[1729194624239,10.29,149.51,149.49,3.28416007]
[1729194624437,13.6348,149.51,149.49,3.28416007]
[1729194625040,3.3445,149.52,149.5,3.3448]
[1729194625737,3.3445,149.52,149.5,3.35028517]
[1729194626639,10.29,149.51,149.48,6.61159381]
[1729194626840,10.29,149.51,149.48,3.26629381]
[1729194627035,10.29,149.51,149.47,10.29]
[1729194627232,3.3448,149.51,149.48,3.3453]
[1729194628741,3.3447,149.51,149.48,3.3453]
[1729194629857,10.29,149.51,149.47,3.3455]
[1729194630257,10.29,149.51,149.46,14.65433951]
[1729194630461,3.3451,149.5,149.47,3.3455]
[1729194630661,10.29,149.51,149.46,14.65433951]
[1729194631162,13.6349,149.51,149.48,3.3453]
[1729194631359,4.88,149.52,149.48,10.29]
[1729194631669,8.2246,149.52,149.49,3.3451]
[1729194631959,8.2246,149.52,149.48,10.29]
[1729194633161,8.2246,149.52,149.49,3.345]
[1729194633861,4.88,149.52,149.48,10.29]
[1729194634062,4.88,149.52,149.51,3.3447]
[1729194634662,3.3441,149.54,149.51,3.3447]
[1729194634852,3.3441,149.54,149.52,3.3444]
[1729194635960,3.3441,149.54,149.5,10.29]
[1729194636262,3.3441,149.54,149.51,3.3446]
[1729194637464,16.5826,149.55,149.51,3.3446]
[1729194637664,3.3443,149.53,149.51,3.3446]
[1729194639255,10.29,149.52,149.48,3.3452]
[1729194639959,3.3448,149.51,149.48,3.3452]
[1729194640158,10.29,149.51,149.48,3.3452]
[1729194640562,13.6349,149.51,149.48,3.3452]
[1729194641864,3.3449,149.5,149.48,3.3452]
[1729194642063,10.29,149.53,149.47,10.29]
[1729194642260,10.29,149.53,149.49,3.345]
[1729194642574,3.3447,149.51,149.49,3.345]
[1729194642954,10.29,149.53,149.48,10.29]
[1729194643762,3.3447,149.51,149.49,3.345]
[1729194643956,10.29,149.53,149.48,10.29]
[1729194644157,3.3447,149.51,149.49,3.345]
[1729194645166,3.3449,149.5,149.48,3.3453]
[1729194653966,10.29,149.51,149.47,10.29]
[1729194654170,10.29,149.51,149.46,14.65433951]
[1729194655170,3.3452,149.49,149.46,14.65433951]
[1729194655467,10.29,149.49,149.46,4.36433951]
[1729194655667,3.3454,149.48,149.46,7.70993951]
[1729194656072,10.29,149.5,149.46,4.36433951]
[1729194657374,3.3453,149.49,149.47,3.3456]
[1729194659270,3.345,149.5,149.48,3.3454]
[1729194659465,15.17,149.51,149.48,10.29]
[1729194660275,4.88,149.51,149.48,10.29]
[1729194660470,10.29,149.53,149.48,10.29]
[1729194661373,3.3446,149.52,149.48,10.29]
[1729194661771,3.3446,149.52,149.49,10.29]
[1729194662172,3.3446,149.52,149.5,3.3448]
[1729194663976,3.3444,149.53,149.5,3.3448]
[1729194664279,1.4126,149.55,149.5,10.29]
[1729194664583,1.4126,149.55,149.51,3.3445]
[1729194664584,3.3442,149.54,149.51,3.3445]
[1729194664974,3.3442,149.54,149.5,10.29]
[1729194665277,3.3442,149.54,149.52,10.29]
[1729194665475,10.29,149.57,149.52,10.29]
[1729194665670,3.3438,149.56,149.53,3.3443]
[1729194666172,15.17,149.57,149.52,10.29]
[1729194666385,3.3435,149.57,149.54,13.6339]
[1729194666681,4.88,149.58,149.55,3.30979899]
[1729194667177,3.3433,149.58,149.55,6.65349899]
[1729194667686,16.5797,149.59,149.55,6.65349899]
[1729194668481,3.3432,149.58,149.55,16.94349899]
[1729194668779,6.2897,149.59,149.55,16.94349899]
[1729194669483,3.3434,149.57,149.55,16.94349899]
[1729194671183,3.3434,149.57,149.48,2.7891]
[1729194671390,3.3436,149.56,149.54,10.29]
[1729194672085,3.3435,149.57,149.55,3.33645401]
[1729194673079,3.3435,149.57,149.54,13.6339]
[1729194673882,11.6997,149.59,149.54,10.29]
[1729194674089,10.29,149.57,149.5,4.88]
[1729194674285,10.29,149.57,149.51,10.29]
[1729194674893,3.3443,149.53,149.51,13.6346]
[1729194675592,3.3441,149.54,149.51,13.6346]
[1729194677688,3.3441,149.54,149.52,3.3445]
[1729194683996,8.2233,149.58,149.53,10.29]
[1729194684298,4.88,149.59,149.56,10.29]
[1729194684501,8.2231,149.59,149.56,17.00720109]
[1729194685200,3.3428,149.6,149.58,10.29]
[1729194685995,3.3426,149.61,149.58,13.633]
[1729194686190,4.2094,149.64,149.59,10.29]
[1729194686191,4.88,149.63,149.59,10.29]